Cogmind - Beta 14 @@@ ROGUE MODE // 2024.11.24 @ 11:43:46 Player: Vineheart01 Result: Destroyed by G-34 Mercenary with Small Laser Performance ------------- Evolutions (1) 500 Regions Visited (3) 600 Robots Destroyed (28) 140 Value Destroyed (641) 641 Prototype IDs (0) 0 Alien Tech Used (0) 0 Bonus (52) 52 TOTAL SCORE: 1933 Bonus ------- Follower Combat Kills 52 Cogmind --------- Core Integrity 0/400 Matter 300/300 Energy 0/100 System Corruption 11% Temperature Cool (6) Movement Core (200) Ox3 Location -9/Storage Parts ------- > --- POWER (1) -------- (None) > --- PROPULSION (2) --- (None) > --- UTILITY (4) ------ Medium Storage Unit ECM Suite > --- WEAPON (2) ------- (None) > --- INVENTORY (10) --- Light Treads ECM Suite Light Assault Rifle Peak State ------------ > --- POWER ------------ Light Ion Engine > --- PROPULSION ------- Light Treads Light Treads > --- UTILITY ---------- Medium Storage Unit Terrain Scanner Terrain Scan Processor ECM Suite > --- WEAPON ----------- Light Assault Rifle Heavy Assault Rifle > --- INVENTORY -------- Ion Engine Light Treads ECM Suite Light Assault Rifle [Rating: 11] Favorites ----------- Power Light Ion Engine Engine Light Ion Engine Propulsion Light Treads Treads Light Treads Leg Aluminum Leg Hover Unit Backup Propulsion I Utility Terrain Scanner Device Terrain Scanner Storage Medium Storage Unit Processor Terrain Scan Processor Weapon Assault Rifle Energy Gun Small Laser Ballistic Gun Assault Rifle Special Weapon Mining Laser Build | -11 -10 -9 -9 ------- Run | Yrd Mat Mat Sto Slots Evolved 2 | . . 2 . Power . | . . . . Propulsion . | . . . . Utility 2 | . . 2 . Weapon . | . . . . Parts Attached 41 | 7 21 6 7 Power 4 | 1 2 . 1 Engine 4 | 1 2 . 1 Core . | . . . . Reactor . | . . . . Propulsion 11 | 2 6 1 2 Treads 8 | 2 4 . 2 Leg 3 | . 2 1 . Wheel . | . . . . Hover . | . . . . Flight . | . . . . Utility 12 | 2 4 4 2 Device 8 | 2 2 3 1 Storage 3 | . 2 1 . Processor 1 | . . . 1 Hackware . | . . . . Protection . | . . . . Artifact . | . . . . Weapon 14 | 2 9 1 2 Energy Gun 2 | . 2 . . Energy Cannon . | . . . . Ballistic Gun 11 | 2 6 1 2 Ballistic Cannon . | . . . . Launcher . | . . . . Special Weapon 1 | . 1 . . Impact Weapon . | . . . . Slashing Weapon . | . . . . Piercing Weapon . | . . . . Special Melee Weapon . | . . . . Unidentified Prototypes . | . . . . Parts Lost 12 | . 4 1 7 Power 2 | . 1 . 1 Propulsion 2 | . . . 2 Utility 5 | . 2 1 2 Weapon 3 | . 1 . 2 Highest Loss Streak 5 | . 3 1 5 To Critical Strikes . | . . . . Average Slot Usage (%) 94 | . 95 98 83 Engine 12 | . 13 11 8 Treads 18 | . 23 . 16 Leg 6 | . 4 21 2 Device 25 | . 23 32 23 Storage 3 | . 1 11 11 Ballistic Gun 24 | . 26 22 15 Peak Build Rating 11 | 9 9 10 11 Average Rating 8 | 4 7 8 8 On Entrance 6 | . 9 7 9 Naked Turns . | . . . . Heaviest Build 22 | 11 20 22 22 Greatest Support 40 | 40 40 20 40 Greatest Overweight (x) 1 | . . 1 . Average Overweight (x) . | . . . . Largest Inventory Capacity 10 | 5 10 10 10 Average Capacity 6 | 5 5 9 10 Most Carried 6 | 5 6 6 6 Average Carried 3 | . 3 4 3 Final Capacity 10 | 5 10 10 10 Final Carried 6 | 1 6 6 3 Class Distribution -------------------- 69% | Mutant 30% | Scavenger-Mutant Dominant Class ---------------- Mutant | -10/Materials Mutant | -9/Materials Mutant | -9/Storage Resources | -11 -10 -9 -9 ----------- Run | Yrd Mat Mat Sto Matter Collected 1040 | 318 516 10 196 Remotely . | . . . . Salvage Created 1073 | 102 744 65 162 Parts 65 | 7 48 6 4 Haulers Intercepted 1 | . 1 . . Recyclers Shooed . | . . . . Parts Field Recycled . | . . . . Retrieved Matter . | . . . . Parts Self-Destructed . | . . . . Prevented . | . . . . Kills | -11 -10 -9 -9 ------- Run | Yrd Mat Mat Sto Combat Hostiles Destroyed 19 | . 17 1 1 Guns 19 | . 17 1 1 Classes Destroyed 8 | 2 4 2 . Tunneler 2 | 2 . . . Hauler 1 | . 1 . . Recycler 2 | 1 1 . . Operator 1 | . . 1 . Watcher 3 | . 3 . . Swarmer 6 | . 6 . . Grunt 12 | . 11 . 1 Sentry 1 | . . 1 . Best Kill Streak 3 | 2 3 1 1 Combat Bots Only 3 | . 3 1 1 Max Kills in Single Turn 1 | 1 1 1 1 Gunslinging . | . . . . Exploded . | . . . . Melee . | . . . . Uniques/NPCs Destroyed . | . . . . Combat | -11 -10 -9 -9 -------- Run | Yrd Mat Mat Sto Hostile Shots Fired 246 | . 106 44 96 Missed 68 | . 33 11 24 Damage Taken 2193 | . 754 451 988 Core 532 | . 124 48 360 Absorbed by Shields . | . . . . Regen/Repaired (Parts) 88 | . . 88 . Core Remaining (%) 75 | 100 50 . . Volleys Fired 92 | 8 65 9 10 Largest 2 | 2 2 2 2 Hottest 100 | 40 100 43 43 Shots Fired 171 | 16 117 18 20 Gun 166 | 16 112 18 20 Cannon . | . . . . Launcher . | . . . . Special 5 | . 5 . . Kinetic 166 | 16 112 18 20 Thermal 5 | . 5 . . Explosive . | . . . . Electromagnetic . | . . . . Robot Hit Streak 12 | 4 9 9 12 Robot Miss Streak 4 | 2 4 4 4 Penetration Max . | . . . . Secondary Targets . | . . . . Shots Hit Robots 98 | 9 65 11 13 Core Hits 49 | 4 36 4 5 Critical Kills . | . . . . Critical Parts Destroyed . | . . . . Critical Strikes . | . . . . Melee Attacks . | . . . . Impact . | . . . . Slashing . | . . . . Piercing . | . . . . Sneak Attacks . | . . . . Combat Hostiles . | . . . . Follow-up Attacks . | . . . . Damage Inflicted 1316 | 112 913 126 165 Guns 1300 | 112 911 112 165 Cannons . | . . . . Explosions . | . . . . Melee . | . . . . Ramming 16 | . 2 14 . Kinetic 1300 | 112 911 112 165 Thermal . | . . . . Explosive . | . . . . Electromagnetic . | . . . . Impact . | . . . . Slashing . | . . . . Piercing . | . . . . Highest Corruption 11 | . . . 11 Average Corruption 6 | . . . 6 Corruption Purged . | . . . . Corruption Blocked . | . . . . Effects 2 | . . . 2 Data Loss (minor) 1 | . . . 1 Data Loss (major) 1 | . . . 1 Overload Shots . | . . . . Overflow Damage . | . . . . Projectiles . | . . . . Explosions . | . . . . Melee . | . . . . Knockbacks . | . . . . Impact . | . . . . Kinetic . | . . . . Secondary . | . . . . Self-Inflicted Damage . | . . . . Shots . | . . . . Rammed . | . . . . Targets Rammed 2 | . 1 1 . Kicked 2 | . 1 1 . Crushed . | . . . . Highest Temperature 60 | . 60 7 19 Average Temperature 13 | . 17 5 7 Received Heat Transfer 915 | . 300 162 453 Siege Activations . | . . . . Robots Corrupted . | . . . . Combat Hostiles . | . . . . Parts Fried . | . . . . Impact Corruptions . | . . . . Robots Melted . | . . . . Combat Hostiles . | . . . . Parts Melted . | . . . . Heat Transferred . | . . . . Parts Sabotaged . | . . . . Parts Stolen . | . . . . Parts Stripped . | . . . . Power Chain Reactions . | . . . . Alert | -11 -10 -9 -9 ------- Run | Yrd Mat Mat Sto Peak Influence 262 | 15 262 116 110 Initial 48 | . 9 . 48 Average 74 | 6 89 38 68 Maximum Alert Level 1 | . 1 . . Low Security (%) 89 | 100 84 100 100 Level 1 10 | . 15 . . Level 2 . | . . . . Level 3 . | . . . . Level 4 . | . . . . Level 5 . | . . . . High Security . | . . . . Max Security . | . . . . Squads Dispatched 6 | . 4 . 2 Investigation 2 | . 2 . . Extermination . | . . . . Reinforcement 2 | . 2 . . Assault 2 | . . . 2 Garrison . | . . . . Intercept . | . . . . Searches Triggered . | . . . . Construction Impeded . | . . . . Haulers Reinforced . | . . . . Active Scanning Responses . | . . . . Cargo Convoy Interrupts . | . . . . Stealth | -11 -10 -9 -9 --------- Run | Yrd Mat Mat Sto Distress Signals 2 | . 1 . 1 Communications Jammed . | . . . . Distress Signals . | . . . . Times Spotted 68 | . 25 12 31 Peak Tracking Total 14 | . 3 7 14 Tactical Retreats 8 | . 3 1 4 Traps | -11 -10 -9 -9 ------- Run | Yrd Mat Mat Sto Traps Triggered 2 | . 1 . 1 Indirectly . | . . . . Trap Hack Attempts . | . . . . Triggered . | . . . . Disarmed . | . . . . Reprogrammed . | . . . . Reused . | . . . . Traps Extracted . | . . . . Installed . | . . . . Triggered . | . . . . Machines | -11 -10 -9 -9 ---------- Run | Yrd Mat Mat Sto Machines Disabled 1 | . 1 . . Max in Single Turn 1 | . 1 . . Machines Repaired . | . . . . Machines Dismantled . | . . . . Machines Sabotaged . | . . . . Overloaded Fab Kills . | . . . . Hacking | -11 -10 -9 -9 --------- Run | Yrd Mat Mat Sto Machines Accessed 8 | . 5 3 . Terminals 5 | . 4 1 . Fabricators . | . . . . Repair Stations 1 | . . 1 . Recycling Units 1 | . 1 . . Scanalyzers 1 | . . 1 . Garrison Access . | . . . . Total Hacks 34 | . 21 13 . Successful 20 | . 12 8 . Failed 14 | . 9 5 . Catastrophic 4 | . 4 . . Database Lockouts . | . . . . Manual 2 | . . . 2 Terminals 22 | . 20 2 . Fabricators . | . . . . Repair Stations 9 | . . 9 . Recycling Units 1 | . 1 . . Scanalyzers 2 | . . 2 . Garrison Access . | . . . . Terminal Hacks 12 | . 11 1 . Record 3 | . 2 1 . Alert Level 3 | . 3 . . Unreport Threat 1 | . 1 . . Locate Traps 1 | . 1 . . Maintenance Status 1 | . 1 . . Transport Status 1 | . 1 . . Investigation Status 1 | . 1 . . Registered Components 1 | . 1 . . Fabricator Hacks . | . . . . Repair Station Hacks 7 | . . 7 . Scan Component 4 | . . 4 . Repair 2 | . . 2 . Refit 1 | . . 1 . Recycling Unit Hacks 1 | . 1 . . Report Inventory 1 | . 1 . . Scanalyzer . | . . . . Garrison Access Hacks . | . . . . Unauthorized Hacks . | . . . . Terminals . | . . . . Fabricators . | . . . . Repair Stations . | . . . . Recycling Units . | . . . . Scanalyzers . | . . . . Garrison Access . | . . . . Data Cores Recovered 1 | . . 1 . Used . | . . . . Hacking Detections 6 | . 4 2 . Full Trace Events 1 | . 1 . . Feedback Events . | . . . . Feedback Blocked . | . . . . Robot Schematics Acquired . | . . . . Robots Built . | . . . . Authchips . | . . . . Time . | . . . . Total Robot Build Rating . | . . . . Part Schematics Acquired . | . . . . Parts Built . | . . . . Authchips . | . . . . Time . | . . . . Total Part Build Rating . | . . . . Parts Repaired 2 | . . 2 . Time 52 | . . 52 . Parts Recycled . | . . . . Recycled Matter . | . . . . Retrieved Matter . | . . . . Retrieved Components . | . . . . Parts Scanalyzed . | . . . . Part Schematics Acquired . | . . . . Parts Damaged . | . . . . Bothacking | -11 -10 -9 -9 ------------ Run | Yrd Mat Mat Sto Used RIF Installer . | . . . . Robots Hacked . | . . . . Non-combat . | . . . . Combat . | . . . . Robot Hacks Applied . | . . . . Relay Couplers Released . | . . . . Fabnet Peak Effective % . | . . . . Robots Rewired . | . . . . Allies Hacked . | . . . . Hacks Repelled . | . . . . Allies | -11 -10 -9 -9 -------- Run | Yrd Mat Mat Sto Total Allies 2 | . . . 2 Largest Group 2 | . . . 2 Highest-Rated Group 62 | . . . 62 Highest-Rated Ally 31 | . . . 31 Total Orders . | . . . . Ally Attacks 16 | . . . 16 Total Damage 234 | . . . 234 Kills 2 | . . . 2 Allies Corrupted 2 | . . . 2 Allies Melted . | . . . . Intel | -11 -10 -9 -9 ------- Run | Yrd Mat Mat Sto Robot Analysis Total . | . . . . Derelict Logs Recovered . | . . . . Drone Launches . | . . . . Drone Recoveries . | . . . . Exploration | -11 -10 -9 -9 ------------- Run | Yrd Mat Mat Sto Turns Passed 1877 | 92 1261 305 219 Spaces Moved 876 | 45 588 140 103 Core 18 | 18 . . . Treads 568 | 27 447 . 94 Legs 290 | . 141 140 9 Wheels . | . . . . Hover . | . . . . Flight . | . . . . Fastest Speed 50 | 50 120 120 120 Average Speed 144 | 116 150 122 156 Slowest Speed 190 | 160 160 190 160 Overloaded Moves . | . . . . Propulsion Burnouts . | . . . . Robots Hopped . | . . . . Cave-ins Triggered . | . . . . Exploration Rate (%) 34 | 4 79 21 32 Regions Visited 3 Branch Regions 1 Pre-discovered Areas . | . . . . Known Exits Taken . | . . . . Unknown Exits Taken 3 | 1 1 1 . Scrap Searched . | . . . . Spaces Dug 4 | . 4 . . Terrain Destroyed 5 | . 5 . . Melee . | . . . . Projectile 5 | . 5 . . AOE . | . . . . Terrain Rammed . | . . . . Walls Destroyed . | . . . . Machines Disabled . | . . . . Actions | -11 -10 -9 -9 --------- Run | Yrd Mat Mat Sto Total 1304 | 69 835 257 143 Wait 245 | . 131 97 17 Move 873 | 44 587 139 103 Hop . | . . . . Pick Up 34 | 9 19 4 2 Fast Attach . | . . . . Attach 17 | 7 5 2 3 Detach . | . . . . Swap 24 | . 16 4 4 Drop 17 | 1 11 1 4 Fire 92 | 8 65 9 10 Melee . | . . . . Ram . | . . . . Kick 2 | . 1 1 . Crush . | . . . . Escape Stasis . | . . . . Rewire . | . . . . Trap . | . . . . Miscellaneous . | . . . . Route ------- -11/Scrapyard -10/Materials (discovered 2 exits: *Mat / [*Min]) -9/Materials -9/Storage History --------- Turn | Location | Event 3 | -11/Scrapyard | Discovered new exit (range 16) 93 | -11/Scrapyard | Entered Materials 304 | -10/Materials | Build established: Mutant 648 | -10/Materials | Build established: Scavenger-Mutant 971 | -10/Materials | Lost 3 parts (1p1u1w) 1202 | -10/Materials | Discovered new exit (range 7) 1235 | -10/Materials | Build established: Mutant 1286 | -10/Materials | Discovered new exit (range 13) 1354 | -10/Materials | Entered another Materials area 1354 | -9/Materials | Evolved 2 slots: Utility x2 1414 | -9/Materials | Repaired Lgt. Treads 1457 | -9/Materials | Repaired Aluminum Leg 1639 | -9/Materials | Discovered new exit (range 4) 1659 | -9/Materials | Entered Storage 1669 | -9/Storage | Met a pair of Derelict thieves 1813 | -9/Storage | Core integrity fell below 50% 1851 | -9/Storage | Lost 5 parts (1p1n1u2w) 1871 | -9/Storage | Core integrity fell below 20% 1873 | -9/Storage | System corruption reached 10% 1878 | -9/Storage | Destroyed by G-34 Mercenary with Small Laser Last Messages --------------- Triggered Explosive Trap. An explosion rips through the floor. Transfer Shaft disabled. U-05 Engineer lays Concrete. U-05 Engineer builds a Wall. Hvy. Assault Rifle destroyed. U-05 Engineer lays Concrete. Lgt. Assault Rifle destroyed. Critical hit (Burn: +37). Lgt. Treads destroyed. Ion Engine destroyed. Terrain Scan Processor destroyed. System corrupted by crushing effect (+3). System corrupted: Substantial component data lost. System corrupted: Component data lost. M-13 Machinist repairs B-36 Bruiser. Lgt. Treads destroyed. Terrain Scanner destroyed. System corrupted by crushing effect (+5). Map ----- +----------------------------------------------------+ | ######## # #???#???# """ ??????????????????? | | #??#?### #??#?????T """ ??????????????????? | | ######## #??##????? ???????????????????? | | ^ ##???#??## ???????????????????? | | # ##########| ????????????????????? | | # " # # #????????????????????? | | T "" / # #????? ??????????????? | | ## "" # """ # #????????????????????? | | ## ##"##/# """"?" # #????????????????????? | | # # " ???" # #????????????????????? | | # # "????" # #????????????????????? | | # # "?"""" " #????????????????????? | | + # """ # #??????#?????????????? | | ##+####### # #????????????????????? | | #?? ?????########## #????????????????????? | | ####### ?????#### # #????????????????????? | | ????##? ??????#""" "" #bgg#????????????????????? | | ???????? ???#"G T" # #????????????????????? | | ???#??????#???#""" "" i #????????????????????? | | ????????????#???## #Y #????????????????????? | | ?????????#???#??#" # g #? ??????????????????? | | ????????????????#T + +????????????????????? | | ????????????????#" #g # ???????????????????? | | ??????????????#?## """" #g # ???????????????????? | | ?????????????#???# """" #bY #? ??????????????????? | | ?????????????????# """" #@ #? ?????????????????? | | ??????????????#??# """" # #?? ?????????????????? | | ?????????????????#?? # #??##????????????????? | | ????????????????????#?### #????????????????????? | | ???????????????#????????# #????????????????????? | | ????????????????????????# #????????????????????? | | ????????????????????????# #????????????????????? | | ????????????????????????# #????????????????????? | | ????????????????????????# #????????????????????? | | ????????????????????????? #????????????????????? | | ????????????????????????? #????????????????????? | | ????????????????????????? #????????????????????? | | ????????????????????????? ????????????????????? | | ????????????????????????? ????????????????????? | | ????????????????????????? T ????????????????????? | | ????????????????????????? ? ?????????????????????? | | ?????????????????????????????????????????????????? | | ?????????????????????????????????????????????????? | | ?????????????????????????????????????????????????? | | ?????????????????????????????????????????????????? | | ?????????????????????????????????????????????????? | | ?????????????????????????????????????????????????? | | ?????????????????????????????????????????????????? | | ?????????????????????????????????????????????????? | | ?????????????????????????????????????????????????? | +----------------------------------------------------+ Best States ------------- Heat Dissipation 28 Energy Generation 10 Energy Capacity 250 Matter Stores 300 Matter Capacity 300 Sight Range 16 Terrain Scan Range 16 Terrain Scan Density 85 ECM Strength 2 Evasion (%) 55 Recoil Reduction 2 Item Schematics ----------------- None Robot Schematics ------------------ None Fabricated ------------ Nothing Alien Tech Used ----------------- None Achievements -------------- Everything Is Under Control One Hack Too Far Challenges ------------ None Game ------ Seed GammaDrainedNeutralizer Manual? 0 Play Time 00:28:41 Cumulative 2.0 hours Start 2024.11.24 @ 11:15:00 End 2024.11.24 @ 11:43:46 Sessions 1 Manual Loads 0 Difficulty Rogue Special Mode None Game No. 3 Rogue 3 Adventurer 0 Explorer 0 Win Type - Total 0 Types 0/0/0/0/0/0/0/0/0 Lore% 2 Gallery% 4 Achievement% 6 Wizard Run 0 Options --------- Layout 1 ASCII 0 Keyboard 0 Movement Mouse Keybinds 0 Fullscreen 2 Font 24/Smallcaps Map View 50x35 Zoom Use 0% Tactical HUD 0 Map Filters NONE Filters NONE Steam 1 RUN: 72310a0c-ea94-4146-b7c6-25727f2c7e1a